[Event "Titled Tuesday Blitz November 08 Early 2022"]
[White "Guimaraes, Wagner Peixoto"]
[Black "Shapiro, Daniel"]
[WhiteFideId "2100940"]
[BlackFideId "2001780"]
[WhiteElo "2231"]
[BlackElo "2301"]
[Result "1-0"]
[Round "11"]
[TimeControl "180+1"]
[Date "2022.11.09"]
[WhiteClock "0:00:39"]
[BlackClock "0:00:09"]

1. Nf3 {[%clk 0:02:57]}  Nf6 {[%clk 0:02:59]} 2. g3 {[%clk 0:02:55]}  d5 {[%clk 0:02:58]} 3. Bg2 {[%clk 0:02:51]}  e6 {[%clk 0:02:58]} 4. c4 {[%clk 0:02:50]}  c6 {[%clk 0:02:48]} 5. d4 {[%clk 0:02:49]}  Bb4+ {[%clk 0:02:46]} 6. Bd2 {[%clk 0:02:45]}  Be7 {[%clk 0:02:46]} 7. Qc2 {[%clk 0:02:42]}  b6 {[%clk 0:02:43]} 8. O-O {[%clk 0:02:41]}  O-O {[%clk 0:02:42]} 9. b3 {[%clk 0:02:38]}  Ba6 {[%clk 0:02:40]} 10. Bc3 {[%clk 0:02:32]}  dxc4 {[%clk 0:02:34]} 11. Ne5 {[%clk 0:02:32]}  cxb3 {[%clk 0:02:20]} 12. axb3 {[%clk 0:02:33]}  Bb7 {[%clk 0:01:57]} 13. Rd1 {[%clk 0:02:23]}  a5 {[%clk 0:01:49]} 14. e4 {[%clk 0:02:16]}  Na6 {[%clk 0:01:45]} 15. Bb2 {[%clk 0:02:08]}  Rc8 {[%clk 0:01:41]} 16. Qe2 {[%clk 0:02:03]}  Qc7 {[%clk 0:01:34]} 17. Nc3 {[%clk 0:01:55]}  Nb4 {[%clk 0:01:32]} 18. Rac1 {[%clk 0:01:47]}  Qb8 {[%clk 0:01:27]} 19. f4 {[%clk 0:01:47]}  Rfd8 {[%clk 0:01:23]} 20. f5 {[%clk 0:01:42]}  Rxd4 {[%clk 0:01:16]} 21. Rxd4 {[%clk 0:01:29]}  Bc5 {[%clk 0:01:16]} 22. Na4 {[%clk 0:01:29]}  Bxd4+ {[%clk 0:00:48]} 23. Bxd4 {[%clk 0:01:28]}  c5 {[%clk 0:00:41]} 24. Bb2 {[%clk 0:01:19]}  Ba6 {[%clk 0:00:36]} 25. Qf3 {[%clk 0:01:10]}  Re8 {[%clk 0:00:27]} 26. Ng4 {[%clk 0:01:04]}  Nd7 {[%clk 0:00:20]} 27. Rd1 {[%clk 0:00:45]}  exf5 {[%clk 0:00:13]} 28. Rxd7 {[%clk 0:00:40]}  fxg4 {[%clk 0:00:09]} 29. Qxf7+ {[%clk 0:00:39]} 1-0


[Site "https://www.chess.com"]

[Event "Titled Tuesday Blitz November 08 Early 2022"]
[White "Jeet, Jain"]
[Black "Aaditya Dhingra"]
[WhiteFideId "5073022"]
[BlackFideId "25678191"]
[WhiteElo "2067"]
[BlackElo "2054"]
[Result "0-1"]
[Round "11"]
[TimeControl "180+1"]
[Date "2022.11.09"]
[WhiteClock "0:00:19"]
[BlackClock "0:00:08"]

1. Nf3 {[%clk 0:03:00]}  Nf6 {[%clk 0:02:59]} 2. g3 {[%clk 0:02:55]}  g6 {[%clk 0:02:59]} 3. Bg2 {[%clk 0:02:56]}  Bg7 {[%clk 0:02:59]} 4. O-O {[%clk 0:02:57]}  O-O {[%clk 0:03:00]} 5. d4 {[%clk 0:02:54]}  d5 {[%clk 0:03:00]} 6. Re1 {[%clk 0:02:38]}  Bf5 {[%clk 0:02:45]} 7. Nbd2 {[%clk 0:02:36]}  h6 {[%clk 0:02:36]} 8. Nh4 {[%clk 0:02:35]}  Be6 {[%clk 0:02:36]} 9. e4 {[%clk 0:02:35]}  dxe4 {[%clk 0:02:36]} 10. Nxe4 {[%clk 0:02:34]}  Nxe4 {[%clk 0:02:37]} 11. Bxe4 {[%clk 0:02:35]}  Bd5 {[%clk 0:02:37]} 12. c3 {[%clk 0:02:31]}  Bxe4 {[%clk 0:02:29]} 13. Rxe4 {[%clk 0:02:32]}  c5 {[%clk 0:02:29]} 14. Be3 {[%clk 0:02:23]}  cxd4 {[%clk 0:02:22]} 15. Bxd4 {[%clk 0:02:22]}  Nc6 {[%clk 0:02:23]} 16. Bxg7 {[%clk 0:02:17]}  Kxg7 {[%clk 0:02:22]} 17. Qb3 {[%clk 0:02:11]}  Qc7 {[%clk 0:02:12]} 18. Rae1 {[%clk 0:02:05]}  Rad8 {[%clk 0:02:10]} 19. Rg4 {[%clk 0:02:00]}  Kh7 {[%clk 0:01:53]} 20. Qc2 {[%clk 0:01:50]}  Ne5 {[%clk 0:01:21]} 21. Rxe5 {[%clk 0:01:28]}  Qxe5 {[%clk 0:01:20]} 22. Nxg6 {[%clk 0:01:28]}  Rd1+ {[%clk 0:00:25]} 23. Qxd1 {[%clk 0:01:27]}  fxg6 {[%clk 0:00:25]} 24. Qd3 {[%clk 0:01:27]}  Rf6 {[%clk 0:00:25]} 25. Re4 {[%clk 0:01:25]}  Qc5 {[%clk 0:00:23]} 26. Qe3 {[%clk 0:01:22]}  Qxe3 {[%clk 0:00:19]} 27. Rxe3 {[%clk 0:01:23]}  Rf7 {[%clk 0:00:18]} 28. f4 {[%clk 0:01:19]}  Kg7 {[%clk 0:00:18]} 29. Kg2 {[%clk 0:01:16]}  Kf8 {[%clk 0:00:18]} 30. h4 {[%clk 0:01:14]}  Rf6 {[%clk 0:00:18]} 31. Re5 {[%clk 0:01:14]}  Rd6 {[%clk 0:00:18]} 32. Kf3 {[%clk 0:01:13]}  Rd3+ {[%clk 0:00:18]} 33. Re3 {[%clk 0:01:13]}  Rd2 {[%clk 0:00:18]} 34. Re2 {[%clk 0:01:13]}  Rd3+ {[%clk 0:00:19]} 35. Kf2 {[%clk 0:01:12]}  Kf7 {[%clk 0:00:19]} 36. a4 {[%clk 0:01:11]}  Kf6 {[%clk 0:00:19]} 37. a5 {[%clk 0:00:52]}  h5 {[%clk 0:00:17]} 38. c4 {[%clk 0:00:47]}  Rb3 {[%clk 0:00:16]} 39. Kg2 {[%clk 0:00:37]}  Rb4 {[%clk 0:00:16]} 40. Rc2 {[%clk 0:00:35]}  Ra4 {[%clk 0:00:14]} 41. b3 {[%clk 0:00:33]}  Rxa5 {[%clk 0:00:14]} 42. Kf3 {[%clk 0:00:34]}  Ra3 {[%clk 0:00:14]} 43. Rc3 {[%clk 0:00:34]}  Ra1 {[%clk 0:00:15]} 44. Ke4 {[%clk 0:00:34]}  Rd1 {[%clk 0:00:14]} 45. b4 {[%clk 0:00:32]}  a6 {[%clk 0:00:12]} 46. c5 {[%clk 0:00:32]}  Rb1 {[%clk 0:00:12]} 47. Rc4 {[%clk 0:00:31]}  Rb3 {[%clk 0:00:12]} 48. c6 {[%clk 0:00:27]}  bxc6 {[%clk 0:00:08]} 49. Rxc6+ {[%clk 0:00:26]}  e6 {[%clk 0:00:08]} 50. Rxa6 {[%clk 0:00:26]}  Rxb4+ {[%clk 0:00:09]} 51. Kf3 {[%clk 0:00:26]}  Rb3+ {[%clk 0:00:09]} 52. Kg2 {[%clk 0:00:26]}  Rb2+ {[%clk 0:00:10]} 53. Kh3 {[%clk 0:00:27]}  Rc2 {[%clk 0:00:09]} 54. Ra5 {[%clk 0:00:27]}  Rb2 {[%clk 0:00:09]} 55. Ra3 {[%clk 0:00:27]}  Rd2 {[%clk 0:00:10]} 56. Ra8 {[%clk 0:00:27]}  Rc2 {[%clk 0:00:09]} 57. Rf8+ {[%clk 0:00:28]}  Kg7 {[%clk 0:00:09]} 58. Rd8 {[%clk 0:00:27]}  Kf7 {[%clk 0:00:09]} 59. Rd3 {[%clk 0:00:25]}  Kf6 {[%clk 0:00:09]} 60. Re3 {[%clk 0:00:24]}  Kf7 {[%clk 0:00:09]} 61. g4 {[%clk 0:00:24]}  hxg4+ {[%clk 0:00:07]} 62. Kxg4 {[%clk 0:00:25]}  Kf6 {[%clk 0:00:08]} 63. Rd3 {[%clk 0:00:25]}  Rg2+ {[%clk 0:00:08]} 64. Kf3 {[%clk 0:00:25]}  Rh2 {[%clk 0:00:07]} 65. Kg3 {[%clk 0:00:25]}  Rh1 {[%clk 0:00:08]} 66. Rd8 {[%clk 0:00:25]}  Rg1+ {[%clk 0:00:07]} 67. Kf3 {[%clk 0:00:26]}  Rh1 {[%clk 0:00:07]} 68. Kg4 {[%clk 0:00:23]}  Rg1+ {[%clk 0:00:07]} 69. Kh3 {[%clk 0:00:24]}  Kf5 {[%clk 0:00:05]} 70. Rf8+ {[%clk 0:00:23]}  Ke4 {[%clk 0:00:05]} 71. Rf6 {[%clk 0:00:23]}  Kd5 {[%clk 0:00:05]} 72. Kh2 {[%clk 0:00:21]}  Rg4 {[%clk 0:00:06]} 73. Kh3 {[%clk 0:00:22]}  Rg1 {[%clk 0:00:06]} 74. Rf8 {[%clk 0:00:22]}  Ke4 {[%clk 0:00:06]} 75. Rf6 {[%clk 0:00:19]}  Kf3 {[%clk 0:00:04]} 76. Kh2 {[%clk 0:00:18]}  Rg2+ {[%clk 0:00:04]} 77. Kh3 {[%clk 0:00:18]}  Rg3+ {[%clk 0:00:04]} 78. Kh2 {[%clk 0:00:18]}  Rg4 {[%clk 0:00:05]} 79. Rxe6 {[%clk 0:00:18]}  Rxh4+ {[%clk 0:00:04]} 80. Kg1 {[%clk 0:00:18]}  Rg4+ {[%clk 0:00:04]} 81. Kf1 {[%clk 0:00:18]}  Kxf4 {[%clk 0:00:04]} 82. Ra6 {[%clk 0:00:17]}  Kg3 {[%clk 0:00:04]} 83. Ra3+ {[%clk 0:00:17]}  Kh4 {[%clk 0:00:04]} 84. Rb3 {[%clk 0:00:16]}  g5 {[%clk 0:00:05]} 85. Ra3 {[%clk 0:00:17]}  Rg3 {[%clk 0:00:05]} 86. Ra8 {[%clk 0:00:16]}  Kh3 {[%clk 0:00:05]} 87. Rh8+ {[%clk 0:00:17]}  Kg4 {[%clk 0:00:05]} 88. Rh7 {[%clk 0:00:17]}  Rb3 {[%clk 0:00:06]} 89. Kg1 {[%clk 0:00:17]}  Kg3 {[%clk 0:00:05]} 90. Rf7 {[%clk 0:00:16]}  Rb1+ {[%clk 0:00:05]} 91. Rf1 {[%clk 0:00:17]}  Rxf1+ {[%clk 0:00:06]} 92. Kxf1 {[%clk 0:00:18]}  Kh2 {[%clk 0:00:07]} 93. Ke2 {[%clk 0:00:18]}  g4 {[%clk 0:00:08]} 94. Kf2 {[%clk 0:00:19]}  g3+ {[%clk 0:00:08]} 0-1


[Site "https://www.chess.com"]

[Event "Titled Tuesday Blitz November 08 Early 2022"]
[White "Jones, Gawain C B"]
[Black "Bacrot, Etienne"]
[WhiteFideId "409561"]
[BlackFideId "605506"]
[WhiteElo "2657"]
[BlackElo "2666"]
[Result "1-0"]
[Round "11"]
[TimeControl "180+1"]
[Date "2022.11.08"]
[WhiteClock "0:01:20"]
[BlackClock "0:00:01"]

1. g3 {[%clk 0:03:00]}  d5 {[%clk 0:02:59]} 2. Nf3 {[%clk 0:03:00]}  Nf6 {[%clk 0:02:59]} 3. Bg2 {[%clk 0:03:01]}  g6 {[%clk 0:03:00]} 4. c4 {[%clk 0:03:00]}  d4 {[%clk 0:02:57]} 5. b4 {[%clk 0:02:59]}  Bg7 {[%clk 0:02:56]} 6. Bb2 {[%clk 0:02:59]}  c5 {[%clk 0:02:56]} 7. bxc5 {[%clk 0:02:58]}  Nc6 {[%clk 0:02:56]} 8. d3 {[%clk 0:02:58]}  Nd7 {[%clk 0:02:51]} 9. Ba3 {[%clk 0:02:56]}  O-O {[%clk 0:02:38]} 10. O-O {[%clk 0:02:51]}  Qa5 {[%clk 0:02:34]} 11. Qe1 {[%clk 0:02:47]}  Qa4 {[%clk 0:02:26]} 12. Nfd2 {[%clk 0:02:42]}  Re8 {[%clk 0:02:20]} 13. Qd1 {[%clk 0:02:37]}  Qa6 {[%clk 0:02:16]} 14. Nb3 {[%clk 0:02:32]}  e5 {[%clk 0:02:12]} 15. Bb2 {[%clk 0:02:24]}  Bf8 {[%clk 0:02:09]} 16. Na3 {[%clk 0:02:18]}  Nxc5 {[%clk 0:02:05]} 17. Nb5 {[%clk 0:02:18]}  Qb6 {[%clk 0:01:59]} 18. Nxc5 {[%clk 0:01:46]}  Bxc5 {[%clk 0:01:57]} 19. Ba3 {[%clk 0:01:43]}  Bxa3 {[%clk 0:01:36]} 20. Nxa3 {[%clk 0:01:42]}  Bf5 {[%clk 0:01:19]} 21. Rb1 {[%clk 0:01:40]}  Qc7 {[%clk 0:01:19]} 22. Nb5 {[%clk 0:01:36]}  Qe7 {[%clk 0:01:14]} 23. c5 {[%clk 0:01:35]}  Qxc5 {[%clk 0:00:43]} 24. Nc7 {[%clk 0:01:34]}  Na5 {[%clk 0:00:16]} 25. Nxe8 {[%clk 0:01:29]}  Rxe8 {[%clk 0:00:16]} 26. Qa4 {[%clk 0:01:29]}  Rc8 {[%clk 0:00:11]} 27. Rb5 {[%clk 0:01:28]}  Qc1 {[%clk 0:00:01]} 28. Rxe5 {[%clk 0:01:20]} 1-0


[Site "https://www.chess.com"]

[Event "Titled Tuesday Blitz November 08 Early 2022"]
[White "Kaasen, Tor Fredrik"]
[Black "Tasev, Dejan"]
[WhiteFideId "1516647"]
[BlackFideId "936618"]
[WhiteElo "2345"]
[BlackElo "2256"]
[Result "1/2-1/2"]
[Round "11"]
[TimeControl "180+1"]
[Date "2022.11.09"]
[WhiteClock "0:00:12"]
[BlackClock "0:00:17"]

1. e4 {[%clk 0:03:00]}  c6 {[%clk 0:03:00]} 2. Nf3 {[%clk 0:02:59]}  d5 {[%clk 0:03:00]} 3. Nc3 {[%clk 0:03:00]}  Bg4 {[%clk 0:03:00]} 4. h3 {[%clk 0:03:00]}  Bxf3 {[%clk 0:03:00]} 5. Qxf3 {[%clk 0:02:59]}  e6 {[%clk 0:03:01]} 6. Be2 {[%clk 0:03:00]}  Nf6 {[%clk 0:03:00]} 7. O-O {[%clk 0:03:01]}  Be7 {[%clk 0:02:56]} 8. d4 {[%clk 0:03:01]}  dxe4 {[%clk 0:02:54]} 9. Qe3 {[%clk 0:03:01]}  Nbd7 {[%clk 0:02:52]} 10. Nxe4 {[%clk 0:03:01]}  Nxe4 {[%clk 0:02:51]} 11. Qxe4 {[%clk 0:03:02]}  Nf6 {[%clk 0:02:52]} 12. Qd3 {[%clk 0:03:02]}  O-O {[%clk 0:02:51]} 13. Rd1 {[%clk 0:03:02]}  Qb6 {[%clk 0:02:45]} 14. Qb3 {[%clk 0:02:52]}  Rfd8 {[%clk 0:02:41]} 15. c3 {[%clk 0:02:51]}  Rd7 {[%clk 0:02:38]} 16. Bf3 {[%clk 0:02:29]}  Rad8 {[%clk 0:02:37]} 17. Qc2 {[%clk 0:02:26]}  h6 {[%clk 0:02:20]} 18. Bf4 {[%clk 0:02:10]}  Bd6 {[%clk 0:02:19]} 19. Be3 {[%clk 0:02:05]}  Qc7 {[%clk 0:02:13]} 20. g3 {[%clk 0:01:47]}  Nd5 {[%clk 0:02:00]} 21. Bxd5 {[%clk 0:01:40]}  exd5 {[%clk 0:01:58]} 22. Kg2 {[%clk 0:01:39]}  Re8 {[%clk 0:01:57]} 23. h4 {[%clk 0:01:39]}  Rde7 {[%clk 0:01:56]} 24. Bd2 {[%clk 0:01:13]}  Bxg3 {[%clk 0:01:48]} 25. fxg3 {[%clk 0:00:59]}  Re2+ {[%clk 0:01:44]} 26. Kf3 {[%clk 0:00:50]}  R8e3+ {[%clk 0:01:12]} 27. Bxe3 {[%clk 0:00:49]}  Rxc2 {[%clk 0:01:11]} 28. Rd2 {[%clk 0:00:49]}  Rxd2 {[%clk 0:01:10]} 29. Bxd2 {[%clk 0:00:50]}  Qd7 {[%clk 0:01:08]} 30. Re1 {[%clk 0:00:44]}  Qf5+ {[%clk 0:01:08]} 31. Kg2 {[%clk 0:00:45]}  Qd3 {[%clk 0:01:06]} 32. Bf4 {[%clk 0:00:42]}  Qc2+ {[%clk 0:01:03]} 33. Kh3 {[%clk 0:00:42]}  Qxb2 {[%clk 0:01:00]} 34. Re8+ {[%clk 0:00:43]}  Kh7 {[%clk 0:01:00]} 35. Re7 {[%clk 0:00:43]}  Kg6 {[%clk 0:00:51]} 36. h5+ {[%clk 0:00:40]}  Kf6 {[%clk 0:00:49]} 37. Re3 {[%clk 0:00:30]}  g5 {[%clk 0:00:43]} 38. Be5+ {[%clk 0:00:28]}  Kf5 {[%clk 0:00:42]} 39. g4+ {[%clk 0:00:27]}  Ke6 {[%clk 0:00:40]} 40. Bg7+ {[%clk 0:00:27]}  Kd7 {[%clk 0:00:37]} 41. Bxh6 {[%clk 0:00:27]}  Qxa2 {[%clk 0:00:33]} 42. Bxg5 {[%clk 0:00:27]}  Qf2 {[%clk 0:00:32]} 43. h6 {[%clk 0:00:25]}  Qf1+ {[%clk 0:00:31]} 44. Kh4 {[%clk 0:00:25]}  Qh1+ {[%clk 0:00:30]} 45. Rh3 {[%clk 0:00:24]}  Qe1+ {[%clk 0:00:30]} 46. Kh5 {[%clk 0:00:23]}  Qe6 {[%clk 0:00:30]} 47. Kh4 {[%clk 0:00:19]}  Qg6 {[%clk 0:00:23]} 48. Kg3 {[%clk 0:00:18]}  Qxg5 {[%clk 0:00:18]} 49. h7 {[%clk 0:00:18]}  Qe3+ {[%clk 0:00:18]} 50. Kg2 {[%clk 0:00:19]}  Qe2+ {[%clk 0:00:18]} 51. Kg3 {[%clk 0:00:20]}  Qd3+ {[%clk 0:00:17]} 52. Kg2 {[%clk 0:00:20]}  Qd2+ {[%clk 0:00:16]} 53. Kg3 {[%clk 0:00:10]}  Qe1+ {[%clk 0:00:16]} 54. Kg2 {[%clk 0:00:11]}  Qe4+ {[%clk 0:00:16]} 55. Kg3 {[%clk 0:00:11]}  Qe3+ {[%clk 0:00:17]} 56. Kg2 {[%clk 0:00:11]}  Qe2+ {[%clk 0:00:16]} 57. Kg3 {[%clk 0:00:12]}  Qe1+ {[%clk 0:00:17]} 58. Kg2 {[%clk 0:00:12]}  Qe2+ {[%clk 0:00:17]} 1/2-1/2


[Site "https://www.chess.com"]

[Event "Titled Tuesday Blitz November 08 Early 2022"]
[White "Kirillov, Dmitry"]
[Black "Degenbaev, Aziz"]
[WhiteFideId "34180572"]
[BlackFideId "13802640"]
[WhiteElo "2095"]
[BlackElo "2039"]
[Result "0-1"]
[Round "11"]
[TimeControl "180+1"]
[Date "2022.11.09"]
[WhiteClock "0:00:07"]
[BlackClock "0:00:07"]

1. e4 {[%clk 0:02:59]}  e6 {[%clk 0:02:58]} 2. d4 {[%clk 0:02:59]}  d5 {[%clk 0:02:58]} 3. Nd2 {[%clk 0:03:00]}  Nc6 {[%clk 0:02:58]} 4. c3 {[%clk 0:02:57]}  e5 {[%clk 0:02:52]} 5. dxe5 {[%clk 0:02:51]}  dxe4 {[%clk 0:02:51]} 6. Bb5 {[%clk 0:02:45]}  Qd5 {[%clk 0:02:46]} 7. Bxc6+ {[%clk 0:02:37]}  bxc6 {[%clk 0:02:46]} 8. Qe2 {[%clk 0:02:33]}  Bf5 {[%clk 0:02:38]} 9. Qc4 {[%clk 0:02:31]}  Rd8 {[%clk 0:02:28]} 10. Ne2 {[%clk 0:02:28]}  Bc5 {[%clk 0:01:47]} 11. O-O {[%clk 0:02:14]}  e3 {[%clk 0:01:36]} 12. fxe3 {[%clk 0:01:40]}  Bxe3+ {[%clk 0:01:35]} 13. Kh1 {[%clk 0:01:39]}  Bxd2 {[%clk 0:01:22]} 14. Qxd5 {[%clk 0:01:38]}  Rxd5 {[%clk 0:01:23]} 15. Rxf5 {[%clk 0:01:38]}  Ne7 {[%clk 0:01:23]} 16. Rf2 {[%clk 0:01:25]}  Bxc1 {[%clk 0:01:17]} 17. Rxc1 {[%clk 0:01:25]}  Rxe5 {[%clk 0:01:17]} 18. Nd4 {[%clk 0:01:26]}  O-O {[%clk 0:01:16]} 19. Rcf1 {[%clk 0:01:19]}  f6 {[%clk 0:01:14]} 20. b4 {[%clk 0:01:13]}  Rd8 {[%clk 0:01:02]} 21. g3 {[%clk 0:01:03]}  Kf7 {[%clk 0:01:02]} 22. Kg2 {[%clk 0:01:02]}  c5 {[%clk 0:01:02]} 23. Nf3 {[%clk 0:00:51]}  Re3 {[%clk 0:00:50]} 24. bxc5 {[%clk 0:00:51]}  Rxc3 {[%clk 0:00:48]} 25. Ng5+ {[%clk 0:00:47]}  Kg6 {[%clk 0:00:45]} 26. Ne6 {[%clk 0:00:47]}  Rb8 {[%clk 0:00:39]} 27. Rd2 {[%clk 0:00:34]}  Nf5 {[%clk 0:00:24]} 28. Nf4+ {[%clk 0:00:20]}  Kh6 {[%clk 0:00:18]} 29. Re1 {[%clk 0:00:10]}  Rxc5 {[%clk 0:00:16]} 30. g4 {[%clk 0:00:07]}  Nd6 {[%clk 0:00:14]} 31. Ne6 {[%clk 0:00:07]}  Rc4 {[%clk 0:00:15]} 32. h3 {[%clk 0:00:06]}  Re8 {[%clk 0:00:11]} 33. Rde2 {[%clk 0:00:06]}  Rb8 {[%clk 0:00:10]} 34. Rd2 {[%clk 0:00:04]}  Rb6 {[%clk 0:00:09]} 35. Nd4 {[%clk 0:00:04]}  Ra4 {[%clk 0:00:09]} 36. Nf3 {[%clk 0:00:04]}  Rba6 {[%clk 0:00:09]} 37. Ree2 {[%clk 0:00:04]}  Nc4 {[%clk 0:00:08]} 38. Rc2 {[%clk 0:00:04]}  Nd6 {[%clk 0:00:05]} 39. Rxc7 {[%clk 0:00:04]}  Rxa2 {[%clk 0:00:05]} 40. Rcc2 {[%clk 0:00:04]}  Rxc2 {[%clk 0:00:05]} 41. Rxc2 {[%clk 0:00:05]}  Ra1 {[%clk 0:00:06]} 42. Nd4 {[%clk 0:00:06]}  a5 {[%clk 0:00:06]} 43. Rc6 {[%clk 0:00:06]}  Ne4 {[%clk 0:00:06]} 44. Nf5+ {[%clk 0:00:06]}  Kg5 {[%clk 0:00:06]} 45. Rc7 {[%clk 0:00:07]}  g6 {[%clk 0:00:06]} 46. Ng3 {[%clk 0:00:04]}  Nxg3 {[%clk 0:00:05]} 47. Kxg3 {[%clk 0:00:05]}  h5 {[%clk 0:00:05]} 48. Ra7 {[%clk 0:00:05]}  hxg4 {[%clk 0:00:05]} 49. hxg4 {[%clk 0:00:05]}  Ra3+ {[%clk 0:00:06]} 50. Kg2 {[%clk 0:00:03]}  Kxg4 {[%clk 0:00:06]} 51. Ra6 {[%clk 0:00:04]}  Kf5 {[%clk 0:00:06]} 52. Kf2 {[%clk 0:00:04]}  g5 {[%clk 0:00:06]} 53. Rb6 {[%clk 0:00:05]}  Ke5 {[%clk 0:00:07]} 54. Rb5+ {[%clk 0:00:06]}  Kf4 {[%clk 0:00:07]} 55. Rb6 {[%clk 0:00:06]}  f5 {[%clk 0:00:08]} 56. Ke1 {[%clk 0:00:07]}  Ke3 {[%clk 0:00:07]} 57. Rb5 {[%clk 0:00:07]}  Ra1+ {[%clk 0:00:07]} 0-1


[Site "https://www.chess.com"]

[Event "Titled Tuesday Blitz November 08 Early 2022"]
[White "Kosteniuk, Alexandra"]
[Black "Bilan, Danila"]
[WhiteFideId "4128125"]
[BlackFideId "24161918"]
[WhiteElo "2469"]
[BlackElo "2173"]
[Result "1-0"]
[Round "11"]
[TimeControl "180+1"]
[Date "2022.11.09"]
[WhiteClock "0:00:49"]
[BlackClock "0:00:02"]

1. e4 {[%clk 0:03:00]}  c6 {[%clk 0:02:58]} 2. Nc3 {[%clk 0:02:59]}  d5 {[%clk 0:02:58]} 3. Nf3 {[%clk 0:03:00]}  Bg4 {[%clk 0:02:56]} 4. h3 {[%clk 0:02:59]}  Bxf3 {[%clk 0:02:56]} 5. Qxf3 {[%clk 0:03:00]}  e6 {[%clk 0:02:53]} 6. g3 {[%clk 0:03:01]}  Nd7 {[%clk 0:02:52]} 7. d4 {[%clk 0:03:00]}  dxe4 {[%clk 0:02:51]} 8. Nxe4 {[%clk 0:02:57]}  Ngf6 {[%clk 0:02:51]} 9. Bg2 {[%clk 0:02:57]}  Be7 {[%clk 0:02:48]} 10. O-O {[%clk 0:02:55]}  O-O {[%clk 0:02:48]} 11. Rd1 {[%clk 0:02:53]}  Nxe4 {[%clk 0:02:43]} 12. Qxe4 {[%clk 0:02:53]}  Bf6 {[%clk 0:02:43]} 13. c4 {[%clk 0:02:46]}  Re8 {[%clk 0:02:15]} 14. Be3 {[%clk 0:02:42]}  Bg5 {[%clk 0:02:07]} 15. f4 {[%clk 0:02:41]}  Bf6 {[%clk 0:02:04]} 16. Rab1 {[%clk 0:02:39]}  Qc7 {[%clk 0:01:53]} 17. b4 {[%clk 0:02:35]}  Rab8 {[%clk 0:01:42]} 18. Rdc1 {[%clk 0:02:19]}  g6 {[%clk 0:01:39]} 19. Qf3 {[%clk 0:02:09]}  Qd6 {[%clk 0:01:32]} 20. c5 {[%clk 0:02:02]}  Qc7 {[%clk 0:01:16]} 21. b5 {[%clk 0:02:02]}  Rbc8 {[%clk 0:01:08]} 22. bxc6 {[%clk 0:01:57]}  bxc6 {[%clk 0:01:09]} 23. Qe2 {[%clk 0:01:54]}  Bg7 {[%clk 0:00:53]} 24. Qa6 {[%clk 0:01:53]}  Nf6 {[%clk 0:00:46]} 25. Rb7 {[%clk 0:01:52]}  Qd8 {[%clk 0:00:44]} 26. Bxc6 {[%clk 0:01:50]}  Nd5 {[%clk 0:00:37]} 27. Bf2 {[%clk 0:01:45]}  Nc7 {[%clk 0:00:16]} 28. Qa4 {[%clk 0:01:41]}  g5 {[%clk 0:00:15]} 29. Bxe8 {[%clk 0:01:36]}  Nxe8 {[%clk 0:00:14]} 30. Qd7 {[%clk 0:01:33]}  gxf4 {[%clk 0:00:09]} 31. Qxf7+ {[%clk 0:01:30]}  Kh8 {[%clk 0:00:09]} 32. gxf4 {[%clk 0:01:25]}  Rc7 {[%clk 0:00:06]} 33. Rxc7 {[%clk 0:01:17]}  Nxc7 {[%clk 0:00:06]} 34. Rd1 {[%clk 0:01:04]}  Bf6 {[%clk 0:00:04]} 35. d5 {[%clk 0:01:00]}  exd5 {[%clk 0:00:02]} 36. c6 {[%clk 0:00:53]}  d4 {[%clk 0:00:02]} 37. Qxf6+ {[%clk 0:00:48]}  Qxf6 {[%clk 0:00:02]} 38. Bxd4 {[%clk 0:00:49]} 1-0


[Site "https://www.chess.com"]

[Event "Titled Tuesday Blitz November 08 Early 2022"]
[White "Krysa, Leandro"]
[Black "Lawson, Eric"]
[WhiteFideId "116807"]
[BlackFideId "2604116"]
[WhiteElo "2485"]
[BlackElo "2511"]
[Result "0-1"]
[Round "11"]
[TimeControl "180+1"]
[Date "2022.11.09"]
[WhiteClock "0:00:03"]
[BlackClock "0:00:10"]

1. e4 {[%clk 0:03:00]}  c5 {[%clk 0:02:59]} 2. Nf3 {[%clk 0:03:01]}  Nc6 {[%clk 0:02:59]} 3. d4 {[%clk 0:03:01]}  cxd4 {[%clk 0:02:59]} 4. Nxd4 {[%clk 0:03:01]}  Nf6 {[%clk 0:02:59]} 5. Nc3 {[%clk 0:03:02]}  e5 {[%clk 0:02:59]} 6. Ndb5 {[%clk 0:03:00]}  d6 {[%clk 0:02:59]} 7. Bg5 {[%clk 0:02:57]}  a6 {[%clk 0:02:59]} 8. Na3 {[%clk 0:02:57]}  b5 {[%clk 0:03:00]} 9. Nab1 {[%clk 0:02:56]}  Be7 {[%clk 0:02:53]} 10. Bxf6 {[%clk 0:02:55]}  Bxf6 {[%clk 0:02:53]} 11. a4 {[%clk 0:02:56]}  b4 {[%clk 0:02:53]} 12. Nd5 {[%clk 0:02:56]}  a5 {[%clk 0:02:53]} 13. Bc4 {[%clk 0:02:56]}  O-O {[%clk 0:02:52]} 14. Qd3 {[%clk 0:02:56]}  Be6 {[%clk 0:02:48]} 15. Nd2 {[%clk 0:02:55]}  Bg5 {[%clk 0:02:48]} 16. O-O {[%clk 0:02:47]}  Bxd2 {[%clk 0:02:43]} 17. Qxd2 {[%clk 0:02:47]}  Rc8 {[%clk 0:02:43]} 18. c3 {[%clk 0:02:44]}  bxc3 {[%clk 0:02:37]} 19. bxc3 {[%clk 0:02:40]}  Ne7 {[%clk 0:02:31]} 20. Nxe7+ {[%clk 0:02:21]}  Qxe7 {[%clk 0:02:30]} 21. Bd5 {[%clk 0:02:20]}  Bxd5 {[%clk 0:02:27]} 22. Qxd5 {[%clk 0:02:21]}  Rc5 {[%clk 0:02:27]} 23. Qd3 {[%clk 0:02:18]}  Rfc8 {[%clk 0:02:28]} 24. Rfc1 {[%clk 0:02:17]}  Qc7 {[%clk 0:02:22]} 25. Rab1 {[%clk 0:02:11]}  g6 {[%clk 0:02:08]} 26. h4 {[%clk 0:02:11]}  Qc6 {[%clk 0:01:35]} 27. Rb5 {[%clk 0:02:04]}  Rc4 {[%clk 0:01:35]} 28. Rxa5 {[%clk 0:01:58]}  Rxe4 {[%clk 0:01:27]} 29. Ra6 {[%clk 0:01:54]}  Qc4 {[%clk 0:01:23]} 30. Qxc4 {[%clk 0:01:51]}  Rexc4 {[%clk 0:01:13]} 31. a5 {[%clk 0:01:42]}  d5 {[%clk 0:01:12]} 32. Rd1 {[%clk 0:01:40]}  R8c5 {[%clk 0:01:08]} 33. h5 {[%clk 0:01:23]}  gxh5 {[%clk 0:01:07]} 34. Rd6 {[%clk 0:00:45]}  Rxa5 {[%clk 0:00:57]} 35. R1xd5 {[%clk 0:00:44]}  Rxd5 {[%clk 0:00:43]} 36. Rxd5 {[%clk 0:00:45]}  f6 {[%clk 0:00:43]} 37. Rd3 {[%clk 0:00:39]}  Kf7 {[%clk 0:00:42]} 38. f3 {[%clk 0:00:39]}  h4 {[%clk 0:00:40]} 39. Kh2 {[%clk 0:00:38]}  Ke6 {[%clk 0:00:40]} 40. Kh3 {[%clk 0:00:39]}  f5 {[%clk 0:00:38]} 41. Re3 {[%clk 0:00:36]}  Kf6 {[%clk 0:00:34]} 42. Rd3 {[%clk 0:00:36]}  Kg5 {[%clk 0:00:33]} 43. Rd7 {[%clk 0:00:34]}  h6 {[%clk 0:00:24]} 44. Rg7+ {[%clk 0:00:27]}  Kf4 {[%clk 0:00:25]} 45. Kxh4 {[%clk 0:00:25]}  e4 {[%clk 0:00:23]} 46. fxe4 {[%clk 0:00:22]}  fxe4 {[%clk 0:00:24]} 47. Kh5 {[%clk 0:00:15]}  Rc5+ {[%clk 0:00:20]} 48. Kxh6 {[%clk 0:00:14]}  e3 {[%clk 0:00:20]} 49. Rf7+ {[%clk 0:00:12]}  Ke4 {[%clk 0:00:20]} 50. Rf1 {[%clk 0:00:10]}  e2 {[%clk 0:00:20]} 51. Rh1 {[%clk 0:00:07]}  Rxc3 {[%clk 0:00:16]} 52. g4 {[%clk 0:00:06]}  Rg3 {[%clk 0:00:16]} 53. g5 {[%clk 0:00:04]}  Kf5 {[%clk 0:00:15]} 54. Re1 {[%clk 0:00:04]}  Rg2 {[%clk 0:00:14]} 55. g6 {[%clk 0:00:03]}  Rxg6+ {[%clk 0:00:14]} 56. Kh5 {[%clk 0:00:04]}  Re6 {[%clk 0:00:09]} 57. Kh4 {[%clk 0:00:03]}  Kf4 {[%clk 0:00:10]} 58. Kh3 {[%clk 0:00:03]}  Kf3 {[%clk 0:00:10]} 0-1


[Site "https://www.chess.com"]